fUST/lending_fUST_20250513
["ID","MTS","AMOUNT","RATE_DAILY","PERIOD"]
[360899784,1747129837677,-153.070132,0.00014794,2]
[360899785,1747129837687,-151.0,0.00014794,2]
[360899786,1747129837697,-151.0,0.00014794,2]
[360899787,1747129837706,-151.0,0.00014794,2]
[360899788,1747129837716,-400.0,0.00014794,2]
[360899789,1747129837726,-151.0,0.00014794,2]
[360899790,1747129837736,-151.0,0.00014794,2]
[360899791,1747129837746,-151.0,0.00014794,2]
[360899792,1747129837756,-151.0,0.00014794,2]
[360899793,1747129837766,-151.0,0.00014794,2]
[360899794,1747129837775,-400.0,0.00014794,2]
[360899795,1747129837784,-923.94,0.00014794,2]
[360899796,1747129837794,-151.0,0.00014794,2]
[360899797,1747129837804,-151.0,0.00014794,2]
[360899798,1747129837814,-151.0,0.00014794,2]
[360899799,1747129837824,-400.0,0.00014794,2]
[360899800,1747129837833,-400.0,0.00014794,2]
[360899801,1747129837843,-400.0,0.00014794,2]
[360899802,1747129837853,-16260.62,0.00014794,2]
[360899803,1747129837862,-151.0,0.00014794,2]
[360899804,1747129837872,-151.0,0.00014794,2]
[360899805,1747129837882,-151.0,0.00014794,2]
[360899806,1747129837891,-151.0,0.00014794,2]
[360899807,1747129837901,-151.0,0.00014794,2]
[360899808,1747129837911,-151.0,0.00014794,2]
[360899809,1747129837921,-400.0,0.00014794,2]
[360899810,1747129837931,-400.0,0.00014794,2]
[360899811,1747129837941,-400.0,0.00014794,2]
[360899812,1747129837951,-400.0,0.00014794,2]
[360899813,1747129837960,-239.80242738,0.00014794,2]
[360899814,1747129837970,-5517.3,0.00014794,2]
[360899815,1747129837980,-579.33,0.00014794,2]
[360899816,1747129837990,-400.0,0.00014794,2]
[360899817,1747129838000,-1449.31,0.00014794,2]
[360899818,1747129838012,-400.0,0.00014794,2]
[360899819,1747129838022,-400.0,0.00014794,2]
[360899820,1747129838031,-1364.423947,0.00014794,2]
[360899821,1747129838040,-1364.423947,0.00014794,2]
[360899822,1747129838050,-1364.423947,0.00014794,2]
[360899823,1747129838060,-1364.423947,0.00014794,2]
[360899824,1747129838070,-1364.423947,0.00014794,2]
[360899825,1747129838079,-1364.423947,0.00014794,2]
[360899826,1747129838089,-1364.423947,0.00014794,2]
[360899828,1747129838098,-1364.423947,0.00014794,2]
[360899829,1747129838108,-151.0,0.00014794,2]
[360899830,1747129838117,-151.0,0.00014794,2]
[360899831,1747129838127,-151.0,0.00014794,2]
[360899832,1747129838136,-151.0,0.00014794,2]
[360899833,1747129838146,-400.0,0.00014794,2]
[360899834,1747129838156,-483.41,0.00014794,2]
[360899835,1747129838165,-151.0,0.00014794,2]
[360899836,1747129838175,-566.930002,0.00014794,2]
[360899838,1747129838185,-566.930002,0.00014794,2]
[360899839,1747129838194,-566.930002,0.00014794,2]
[360899842,1747129838204,-151.0,0.00014794,2]
[360899844,1747129838214,-566.930002,0.00014794,2]
[360899846,1747129838223,-151.0,0.00014794,2]
[360899848,1747129838233,-151.0,0.00014794,2]
[360899850,1747129838242,-151.0,0.00014794,2]
[360899852,1747129838252,-566.930002,0.00014794,2]
[360899854,1747129838263,-566.930002,0.00014794,2]
[360899855,1747129838273,-566.930002,0.00014794,2]
[360899856,1747129838283,-358.0,0.00014794,2]
[360899857,1747129838292,-566.930002,0.00014794,2]
[360899858,1747129838302,-151.0,0.00014794,2]
[360899859,1747129838312,-151.0,0.00014794,2]
[360899860,1747129838323,-151.0,0.00014794,2]
[360899861,1747129838332,-1277.99,0.00014794,2]
[360899863,1747129838343,-400.0,0.00014794,2]
[360899865,1747129838352,-3504.65,0.00014794,2]
[360899867,1747129838361,-400.0,0.00014794,2]
[360899869,1747129838371,-400.0,0.00014794,2]
[360899871,1747129838383,-403.73457987,0.00014794,2]
[360899874,1747129838398,-400.0,0.00014794,2]
[360899876,1747129838414,-400.0,0.00014794,2]
[360899879,1747129838429,-400.0,0.00014794,2]
[360899881,1747129838441,-400.0,0.00014794,2]
[360899884,1747129838455,-402.55,0.00014794,2]
[360899886,1747129838468,-400.0,0.00014794,2]
[360899887,1747129838482,-1247.00472328,0.000149,2]
[360899889,1747129838496,-1978.53,0.00014999,2]
[360899892,1747129838509,-300.0,0.00014999,2]
[360899894,1747129838523,-20000.0,0.00015,2]
[360899897,1747129838539,-151.0,0.00015,2]
[360899899,1747129838552,-151.0,0.00015,2]
[360899902,1747129838565,-151.0,0.00015,2]
[360899904,1747129838580,-151.0,0.00015,2]
[360899906,1747129838595,-218.744874,0.00015,2]
[360899909,1747129838608,-218.744874,0.00015,2]
[360899911,1747129838620,-151.0,0.00015,2]
[360899913,1747129838632,-151.0,0.00015,2]
[360899916,1747129838644,-151.0,0.00015,2]
[360899918,1747129838658,-151.0,0.00015,2]
[360899921,1747129838672,-151.0,0.00015,2]
[360899923,1747129838685,-184.127679,0.00015,2]
[360899926,1747129838700,-1364.423947,0.00015,2]
[360899928,1747129838715,-1364.423947,0.00015,2]
[360899931,1747129838728,-566.930002,0.00015,2]
[360899933,1747129838741,-151.0,0.00015,2]
[360899935,1747129838752,-566.930002,0.00015,2]
[360899937,1747129838764,-151.0,0.00015,2]
[360899940,1747129838779,-400.0,0.00015063,2]
[360899943,1747129838792,-651.01,0.00015063,2]
[360899945,1747129838803,-400.0,0.00015063,2]
[360899947,1747129838814,-400.0,0.00015063,2]
[360899950,1747129838828,-2021.42,0.00015063,2]
[360899952,1747129838841,-2153.42,0.00015063,2]
[360899954,1747129838852,-3053.48,0.00015063,2]
[360899956,1747129838862,-7100.92,0.00015063,2]
[360899959,1747129838874,-502.26,0.00015063,2]
[360899961,1747129838886,-400.0,0.00015063,2]
[360899963,1747129838898,-400.0,0.00015063,2]
[360899966,1747129838911,-1156.29,0.00015063,2]
[360899968,1747129838923,-400.0,0.00015063,2]
[360899971,1747129838935,-400.0,0.00015064,2]
[360899973,1747129838947,-503.32,0.00015064,2]
[360899975,1747129838958,-400.0,0.00015064,2]
[360899977,1747129838970,-440.01,0.00015064,2]
[360899980,1747129838981,-982.72,0.00015064,2]
[360899982,1747129838994,-400.0,0.00015064,2]
[360899984,1747129839006,-836.36,0.00015064,2]
[360899987,1747129839018,-575.58,0.00015064,2]
[360899989,1747129839030,-406.32,0.00015064,2]
[360899991,1747129839041,-400.0,0.00015064,2]
[360899994,1747129839057,-400.0,0.00015064,2]
[360899996,1747129839068,-539.75,0.00015064,2]
[360899999,1747129839080,-400.0,0.00015064,2]
[360900001,1747129839091,-410.79,0.00015064,2]
[360900003,1747129839103,-506.74912663,0.00015064,2]
[360900006,1747129839115,-468.48,0.00015064,2]
[360900008,1747129839127,-400.0,0.00015064,2]
[360900010,1747129839138,-400.0,0.00015064,2]
[360900012,1747129839151,-400.0,0.00015064,2]
[360900015,1747129839163,-400.0,0.00015064,2]
[360900017,1747129839174,-400.0,0.00015064,2]
[360900019,1747129839187,-1535.59,0.00015064,2]
[360900022,1747129839198,-400.0,0.00015064,2]
[360900024,1747129839210,-375.14464213,0.00015064,2]
[360900026,1747129839222,-400.0,0.00015064,2]
[360900029,1747129839234,-13800.47,0.00015064,2]
[360900031,1747129839246,-400.0,0.00015064,2]
[360900033,1747129839258,-400.0,0.00015064,2]
[360900035,1747129839270,-482.35,0.00015064,2]
[360900038,1747129839285,-691.82,0.00015064,2]
[360900040,1747129839296,-400.0,0.00015064,2]
[360900042,1747129839309,-400.0,0.00015064,2]
[360900045,1747129839322,-400.0,0.00015064,2]
[360900047,1747129839335,-699.19,0.00015064,2]
[360900049,1747129839347,-400.0,0.00015064,2]
[360900052,1747129839359,-3552.85,0.00015064,2]
[360900054,1747129839372,-400.0,0.00015064,2]
[360900056,1747129839384,-400.0,0.00015064,2]
[360900059,1747129839397,-400.0,0.00015064,2]
[360900061,1747129839408,-4035.75,0.00015064,2]
[360900063,1747129839420,-498.59,0.00015064,2]
[360900065,1747129839432,-848.88,0.00015064,2]
[360900068,1747129839444,-593.69,0.00015064,2]
[360900070,1747129839456,-400.0,0.00015064,2]
[360900072,1747129839468,-400.0,0.00015064,2]
[360900075,1747129839481,-400.0,0.00015064,2]
[360900077,1747129839493,-547.97,0.00015064,2]
[360900079,1747129839505,-400.0,0.00015064,2]
[360900082,1747129839517,-8755.13,0.00015064,2]
[360900084,1747129839529,-400.0,0.00015064,2]
[360900086,1747129839541,-400.0,0.00015064,2]
[360900088,1747129839553,-400.0,0.00015064,2]
[360900091,1747129839565,-400.0,0.00015064,2]
[360900093,1747129839577,-15158.2,0.00015064,2]
[360900095,1747129839591,-165.199472,0.00015064,2]
[360900098,1747129839604,-400.0,0.00015064,2]
[360900100,1747129839617,-977.93,0.00015064,2]
[360900102,1747129839629,-834.59,0.00015064,2]
[360900105,1747129839642,-700.0,0.00015064,2]
[360900107,1747129839654,-764.84,0.00015064,2]
[360900109,1747129839667,-400.0,0.00015064,2]
[360900111,1747129839679,-583.5,0.00015064,2]
[360900113,1747129839691,-400.0,0.00015064,2]
[360900116,1747129839703,-838.37,0.00015064,2]
[360900118,1747129839715,-400.0,0.00015064,2]
[360900120,1747129839727,-400.0,0.00015064,2]
[360900122,1747129839740,-710.58,0.00015064,2]
[360900125,1747129839752,-1043.93,0.00015064,2]
[360900127,1747129839767,-400.0,0.00015064,2]
[360900129,1747129839779,-686.24,0.00015064,2]
[360900132,1747129839793,-400.0,0.00015064,2]
[360900134,1747129839806,-400.0,0.00015064,2]
[360900136,1747129839819,-2482.01,0.00015064,2]
[360900139,1747129839832,-400.0,0.00015064,2]
[360900141,1747129839844,-4909.6,0.00015064,2]
[360900143,1747129839856,-400.0,0.00015064,2]
[360900145,1747129839869,-400.0,0.00015064,2]
[360900148,1747129839881,-400.0,0.00015064,2]
[360900150,1747129839894,-870.41,0.00015064,2]
[360900152,1747129839907,-400.0,0.00015064,2]
[360900155,1747129839919,-400.0,0.00015064,2]
[360900157,1747129839931,-400.0,0.00015064,2]
[360900159,1747129839944,-400.0,0.00015064,2]
[360900162,1747129839956,-400.0,0.00015064,2]
[360900164,1747129839969,-582.0,0.00015064,2]
[360900166,1747129839981,-400.0,0.00015064,2]
[360900168,1747129839994,-1145.79,0.00015064,2]
[360900171,1747129840008,-400.0,0.00015064,2]
[360900173,1747129840020,-481.67,0.00015064,2]
[360900175,1747129840033,-3461.21,0.00015064,2]
[360900178,1747129840045,-400.0,0.00015064,2]
[360900180,1747129840057,-400.0,0.00015064,2]
[360900182,1747129840070,-1051.22,0.00015064,2]
[360900185,1747129840082,-5083.99,0.00015064,2]
[360900187,1747129840094,-400.0,0.00015064,2]
[360900189,1747129840107,-698.95,0.00015064,2]
[360900192,1747129840120,-969.02,0.00015064,2]
[360900194,1747129840133,-400.0,0.00015065,2]
[360900196,1747129840145,-400.0,0.00015065,2]
[360900198,1747129840157,-400.0,0.00015065,2]
[360900201,1747129840169,-400.0,0.00015065,2]
[360900203,1747129840181,-400.0,0.00015065,2]
[360900205,1747129840193,-1389.47,0.00015065,2]
[360900207,1747129840205,-400.0,0.00015065,2]
[360900210,1747129840216,-2317.72,0.00015065,2]
[360900212,1747129840228,-19953.75,0.00015065,2]
[360900214,1747129840240,-400.0,0.00015065,2]
[360900216,1747129840251,-2785.45,0.00015065,2]
[360900219,1747129840264,-2779.64,0.00015065,2]
[360900221,1747129840276,-6584.62,0.00015065,2]
[360900223,1747129840287,-458.66,0.00015065,2]
[360900225,1747129840299,-598.69,0.00015065,2]
[360900228,1747129840312,-491.05,0.00015065,2]
[360900230,1747129840325,-400.0,0.00015065,2]
[360900232,1747129840337,-1234.33,0.00015065,2]
[360900234,1747129840349,-3225.78,0.00015065,2]
[360900237,1747129840361,-400.0,0.00015066,2]
[360900239,1747129840373,-400.0,0.00015066,2]
[360900241,1747129840385,-507.08592295,0.00015066,2]
[360900243,1747129840397,-400.0,0.00015066,2]
[360900246,1747129840410,-400.0,0.00015066,2]
[360900248,1747129840423,-457.24054054,0.00015066,2]
[360900250,1747129840434,-1593.62,0.00015066,2]
[360900252,1747129840446,-400.0,0.00015066,2]
[360900255,1747129840457,-400.0,0.00015066,2]
[360900257,1747129840469,-400.0,0.00015066,2]
[360900259,1747129840481,-534.69105934,0.00015066,2]
[360900261,1747129840492,-400.0,0.00015066,2]
[360900263,1747129840504,-337.70461111,0.00015066,2]
[360900266,1747129840516,-400.0,0.00015066,2]
[360900268,1747129840528,-1227.51,0.00015066,2]
[360900270,1747129840539,-400.0,0.00015066,2]
[360900272,1747129840551,-1074.61,0.00015066,2]
[360900274,1747129840562,-400.0,0.00015066,2]
[360900277,1747129840574,-400.0,0.00015066,2]
[360900279,1747129840585,-400.0,0.00015066,2]
[360900281,1747129840599,-400.0,0.00015066,2]
[360900283,1747129840610,-400.0,0.00015066,2]
[360900285,1747129840621,-400.0,0.00015066,2]
[360900288,1747129840634,-756.36,0.00015066,2]
[360900290,1747129840646,-500.19644435,0.00015066,2]
[360900292,1747129840656,-1099.43,0.00015066,2]
[360900294,1747129840665,-2178.16,0.00015066,2]
[360900296,1747129840675,-400.0,0.00015066,2]
[360900298,1747129840685,-693.72,0.00015066,2]
[360900300,1747129840694,-151.0,0.00015066,2]
[360900302,1747129840704,-1357.3,0.00015066,2]
[360900304,1747129840713,-331.3081586,0.00015066,2]
[360900345,1747129841108,-402.4,0.00015066,2]
[360900350,1747129841141,-427.66,0.00015066,2]
[360900353,1747129841162,-683.48,0.00015066,2]
[360900355,1747129841174,-573.87,0.00015066,2]
[360900357,1747129841184,-218.744874,0.00015066,2]
[360900359,1747129841193,-218.744874,0.00015066,2]
[360900360,1747129841202,-218.744874,0.00015066,2]
[360900361,1747129841212,-218.744874,0.00015066,2]
[360900362,1747129841221,-155.650405,0.00015066,2]
[360900363,1747129841231,-155.650405,0.00015066,2]
[360900364,1747129841240,-527.15,0.00015066,2]
[360900365,1747129841249,-400.0,0.00015066,2]
[360900366,1747129841258,-537.17,0.00015066,2]
[360900367,1747129841267,-1047.76,0.00015066,2]
[360900368,1747129841277,-151.0,0.00015066,2]
[360900369,1747129841286,-151.0,0.00015066,2]
[360900370,1747129841295,-400.0,0.00015066,2]
[360900371,1747129841304,-151.0,0.00015066,2]
[360900372,1747129841313,-213.090615,0.00015066,2]
[360900373,1747129841323,-1303.93,0.00015066,2]
[360900374,1747129841333,-400.0,0.00015066,2]
[360900375,1747129841342,-1579.82,0.00015066,2]
[360900376,1747129841352,-431.08,0.00015066,2]
[360900378,1747129841362,-151.0,0.00015066,2]
[360900380,1747129841371,-279.121842,0.00015066,2]
[360900382,1747129841381,-892.89,0.00015066,2]
[360900384,1747129841390,-2175.26,0.00015066,2]
[360900386,1747129841400,-400.0,0.00015066,2]
[360900388,1747129841409,-2961.69,0.00015066,2]
[360900390,1747129841420,-1769.3,0.00015066,2]
[360900392,1747129841429,-1935.01,0.00015066,2]
[360900394,1747129841439,-742.78,0.00015066,2]
[360900396,1747129841448,-400.0,0.00015066,2]
[360900398,1747129841457,-1799.48,0.00015066,2]
[360900400,1747129841467,-400.0,0.00015066,2]
[360900402,1747129841476,-595.69,0.00015066,2]
[360900404,1747129841485,-400.0,0.00015066,2]
[360900406,1747129841495,-151.0,0.00015066,2]
[360900408,1747129841504,-151.0,0.00015066,2]
[360900410,1747129841514,-3575.35,0.00015066,2]
[360900412,1747129841523,-804.39,0.00015066,2]
[360900414,1747129841533,-1034.21,0.00015066,2]
[360900416,1747129841543,-3531.0,0.00015066,2]
[360900418,1747129841553,-1693.25,0.00015066,2]
[360900420,1747129841563,-4976.72,0.00015066,2]
[360900422,1747129841572,-435.92,0.00015066,2]
[360900424,1747129841581,-2394.05,0.00015066,2]
[360900426,1747129841591,-494.33,0.00015066,2]
[360900428,1747129841603,-400.0,0.00015066,2]
[360900430,1747129841613,-755.08,0.00015066,2]
[360900432,1747129841623,-2045.9,0.00015066,2]
[360900434,1747129841632,-421.15,0.00015066,2]
[360900436,1747129841643,-580.69,0.00015066,2]
[360900438,1747129841653,-1364.423947,0.00015066,2]
[360900440,1747129841662,-1364.423947,0.00015066,2]
[360900442,1747129841673,-1364.423947,0.00015066,2]
[360900444,1747129841683,-543.77,0.00015066,2]
[360900446,1747129841692,-1364.423947,0.00015066,2]
[360900448,1747129841701,-434.04,0.00015066,2]
[360900450,1747129841710,-1364.423947,0.00015066,2]
[360900452,1747129841721,-1364.423947,0.00015066,2]
[360900454,1747129841730,-483.46,0.00015066,2]
[360900456,1747129841740,-566.930002,0.00015066,2]
[360900458,1747129841749,-566.930002,0.00015066,2]
[360900460,1747129841758,-566.930002,0.00015066,2]
[360900462,1747129841767,-151.0,0.00015066,2]
[360900464,1747129841777,-151.0,0.00015066,2]
[360900466,1747129841787,-279.434655,0.00015066,2]
[360900468,1747129841796,-782.18,0.00015066,2]
[360900470,1747129841806,-673.38,0.00015066,2]
[360900472,1747129841815,-566.930002,0.00015066,2]
[360900474,1747129841824,-885.09,0.00015066,2]
[360900476,1747129841833,-566.930002,0.00015066,2]
[360900478,1747129841843,-566.930002,0.00015066,2]
[360900480,1747129841854,-400.0,0.00015066,2]
[360900482,1747129841864,-530.47,0.00015066,2]
[360900484,1747129841873,-1208.88,0.00015066,2]
[360900486,1747129841883,-400.0,0.00015066,2]
[360900487,1747129841892,-1285.27,0.00015066,2]
[360900488,1747129841901,-3563.32,0.00015066,2]
[360900489,1747129841910,-400.0,0.00015066,2]
[360900490,1747129841919,-382.6413108,0.00015066,2]
[360900491,1747129841928,-586.61,0.00015066,2]
[360900492,1747129841937,-1775.09,0.00015066,2]
[360900493,1747129841946,-763.25,0.00015066,2]
[360900494,1747129841956,-1414.38,0.00015066,2]
[360900495,1747129841966,-400.0,0.00015066,2]
[360900496,1747129841975,-1294.67,0.00015066,2]
[360900497,1747129841984,-1166.06,0.00015066,2]
[360900498,1747129841993,-400.0,0.00015066,2]
[360900499,1747129842003,-400.0,0.00015066,2]
[360900500,1747129842013,-400.0,0.00015066,2]
[360900501,1747129842022,-518.66,0.00015066,2]
[360900502,1747129842031,-1263.63,0.00015066,2]
[360900503,1747129842040,-400.0,0.00015066,2]
[360900504,1747129842050,-1199.5,0.00015066,2]
[360900505,1747129842059,-400.0,0.00015066,2]
[360900506,1747129842068,-400.0,0.00015066,2]
[360900507,1747129842077,-464.02,0.00015066,2]
[360900508,1747129842087,-3744.34,0.00015066,2]
[360900509,1747129842096,-500.0,0.00015066,2]
[360900510,1747129842105,-714.06,0.00015066,2]
[360900511,1747129842115,-899.86,0.00015066,2]
[360900512,1747129842124,-789.38,0.00015066,2]
[360900513,1747129842134,-400.0,0.00015067,2]
[360900514,1747129842143,-400.0,0.00015067,2]
[360900515,1747129842152,-400.0,0.00015067,2]
[360900516,1747129842161,-151.0,0.00015067,2]
[360900517,1747129842170,-151.0,0.00015067,2]
[360900518,1747129842179,-151.0,0.00015067,2]
[360900519,1747129842189,-151.0,0.00015067,2]
[360900520,1747129842198,-151.0,0.00015067,2]
[360900521,1747129842209,-294.949279,0.00015067,2]
[360900522,1747129842218,-290.943191,0.00015067,2]
[360900523,1747129842227,-151.0,0.00015067,2]
[360900525,1747129842236,-151.0,0.00015067,2]
[360900527,1747129842245,-243.690893,0.00015067,2]
[360900529,1747129842255,-243.690893,0.00015067,2]
[360900531,1747129842266,-243.690893,0.00015067,2]
[360900533,1747129842275,-243.690893,0.00015067,2]
[360900535,1747129842285,-289.499641,0.00015067,2]
[360900538,1747129842294,-289.499641,0.00015067,2]
[360900540,1747129842303,-289.499641,0.00015067,2]
[360900542,1747129842313,-289.499641,0.00015067,2]
[360900544,1747129842322,-289.499641,0.00015067,2]
[360900546,1747129842331,-289.499641,0.00015067,2]
[360900548,1747129842340,-151.0,0.00015067,2]
[360900550,1747129842349,-151.0,0.00015067,2]
[360900551,1747129842358,-151.0,0.00015067,2]
[360900552,1747129842368,-218.744874,0.00015067,2]
[360900553,1747129842377,-218.744874,0.00015067,2]
[360900554,1747129842386,-218.744874,0.00015067,2]
[360900555,1747129842397,-218.744874,0.00015067,2]
[360900556,1747129842406,-155.650405,0.00015067,2]
[360900557,1747129842416,-155.650405,0.00015067,2]
[360900558,1747129842425,-151.0,0.00015067,2]
[360900559,1747129842435,-243.023137,0.00015067,2]
[360900560,1747129842444,-469.79,0.00015067,2]
[360900561,1747129842453,-24083.2,0.00015067,2]
[360900562,1747129842463,-400.0,0.00015067,2]
[360900563,1747129842472,-1553.63,0.00015067,2]
[360900564,1747129842481,-151.0,0.00015067,2]
[360900565,1747129842490,-151.0,0.00015067,2]
[360900566,1747129842499,-4954.09,0.00015067,2]
[360900567,1747129842509,-4157.88,0.00015067,2]
[360900568,1747129842518,-1734.67,0.00015067,2]
[360900569,1747129842527,-603.93,0.00015067,2]
[360900570,1747129842537,-2700.97,0.00015067,2]
[360900571,1747129842547,-664.88,0.00015067,2]
[360900572,1747129842556,-1364.423947,0.00015067,2]
[360900573,1747129842566,-1364.4239453,0.00015067,2]
[360900574,1747129842575,-1816.86,0.00015067,2]
[360900575,1747129842584,-566.930002,0.00015067,2]
[360900576,1747129842596,-566.929995,0.00015067,2]
[360900577,1747129842606,-1682.8,0.00015067,2]
[360900578,1747129842615,-9759.46,0.00015067,2]
[360900579,1747129842624,-1280.79,0.00015067,2]
[360900580,1747129842633,-7092.65,0.00015067,2]
[360900581,1747129842643,-2157.61,0.00015067,2]
[360900582,1747129842652,-400.0,0.00015067,2]
[360900583,1747129842662,-400.0,0.00015067,2]
[360900584,1747129842671,-1317.09,0.00015067,2]
[360900585,1747129842682,-400.0,0.00015068,2]
[360900586,1747129842692,-400.0,0.00015068,2]
[360900587,1747129842701,-400.0,0.00015068,2]
[360900588,1747129842711,-400.0,0.00015068,2]
[360900589,1747129842720,-400.0,0.00015068,2]
[360900590,1747129842730,-400.0,0.00015068,2]
[360900591,1747129842740,-400.0,0.00015068,2]
[360900592,1747129842750,-935.59,0.00015068,2]
[360900593,1747129842762,-400.0,0.00015068,2]
[360900594,1747129842772,-177.086735,0.00015068,2]
[360900595,1747129842782,-400.0,0.00015068,2]
[360900596,1747129842791,-400.0,0.00015068,2]
[360900597,1747129842802,-400.0,0.00015068,2]
[360900598,1747129842811,-151.0,0.00015068,2]
[360900599,1747129842821,-656.99,0.00015068,2]
[360900600,1747129842831,-400.0,0.00015068,2]
[360900601,1747129842841,-748.1,0.00015068,2]
[360900602,1747129842851,-152.057698,0.00015068,2]
[360900603,1747129842860,-191.254924,0.00015068,2]
[360900604,1747129842869,-600.82,0.00015068,2]
[360900606,1747129842879,-685.76,0.00015068,2]
[360900607,1747129842887,-400.0,0.00015068,2]
[360900609,1747129842898,-151.0,0.00015068,2]
[360900611,1747129842908,-151.0,0.00015068,2]
[360900613,1747129842917,-151.0,0.00015068,2]
[360900615,1747129842927,-400.0,0.00015068,2]
[360900617,1747129842936,-151.0,0.00015068,2]
[360900619,1747129842946,-151.0,0.00015068,2]
[360900620,1747129842955,-151.0,0.00015068,2]
[360900622,1747129842964,-451.54,0.00015068,2]
[360900624,1747129842974,-168.76818091,0.00015068,2]
[360900625,1747129842984,-400.0,0.00015068,2]
[360900626,1747129842994,-520.26,0.00015068,2]
[360900627,1747129843004,-934.1,0.00015068,2]
[360900628,1747129843015,-400.0,0.00015068,2]
[360900629,1747129843025,-151.0,0.00015068,2]
[360900631,1747129843034,-191.11028764,0.00015068,2]
[360900632,1747129843044,-282.25591215,0.00015068,2]
[360900634,1747129843053,-400.0,0.00015068,2]
[360900636,1747129843063,-400.0,0.00015068,2]
[360900638,1747129843072,-400.0,0.00015068,2]
[360900640,1747129843082,-400.0,0.00015068,2]
[360900643,1747129843091,-400.0,0.00015068,2]
[360900644,1747129843101,-400.0,0.00015068,2]
[360900645,1747129843119,-400.0,0.00015068,2]
[360900646,1747129843129,-400.0,0.00015068,2]
[360900648,1747129843141,-400.0,0.00015068,2]
[360900650,1747129843150,-438.03,0.00015068,2]
[360900652,1747129843159,-151.144698,0.00015068,2]
[360900654,1747129843169,-802.11,0.00015068,2]
[360900656,1747129843178,-413.68660741,0.00015068,2]
[360900658,1747129843188,-413.98,0.00015068,2]
[360900660,1747129843198,-173.24934284,0.00015068,2]
[360900662,1747129843209,-906.8,0.00015068,2]
[360900664,1747129843218,-400.0,0.00015068,2]
[360900666,1747129843228,-400.0,0.00015068,2]
[360900668,1747129843240,-400.0,0.00015068,2]
[360900670,1747129843249,-780.78,0.00015068,2]
[360900672,1747129843259,-400.0,0.00015068,2]
[360900675,1747129843269,-1012.11,0.00015068,2]
[360900678,1747129843279,-400.0,0.00015068,2]
[360900681,1747129843288,-400.0,0.00015068,2]
[360900684,1747129843299,-717.49,0.00015068,2]
[360900686,1747129843308,-400.0,0.00015068,2]
[360900689,1747129843318,-151.0,0.00015068,2]
[360900692,1747129843327,-151.0,0.00015068,2]
[360900694,1747129843338,-151.0,0.00015068,2]
[360900696,1747129843347,-1265.58,0.00015068,2]
[360900698,1747129843357,-400.0,0.00015068,2]
[360900700,1747129843367,-400.0,0.00015068,2]
[360900702,1747129843377,-400.0,0.00015068,2]
[360900704,1747129843386,-400.0,0.00015068,2]
[360900706,1747129843396,-151.0,0.00015068,2]
[360900708,1747129843406,-400.0,0.00015068,2]
[360900710,1747129843415,-400.0,0.00015068,2]
[360900712,1747129843425,-400.0,0.00015068,2]